[Event "Szansa Chess Open 2022"]
[Site "Warsaw"]
[Date "2022.09.17"]
[Round "6"]
[White "Golecki, Jan"]
[Black "Kozak, Antoni"]
[Result "1-0"]
[ECO "B53"]
[WhiteElo "2193"]
[BlackElo "2434"]
[Annotator "ChessBase"]
[PlyCount "61"]
[EventDate "2022.09.17"]
[EventCountry "POL"]
[SourceTitle "playchess.com"]
[Source "ChessBase"]
[SourceQuality "1"]
[TimeControl "900+10"]

1. e4 {[%emt 0:00:02]} c5 {[%emt 0:00:01]} 2. Nf3 {[%emt 0:00:02]} d6 {[%emt 0:00:01]} 3. d4 {[%emt 0:00:01]} cxd4 {[%emt 0:00:01]} 4. Qxd4 {[%emt 0:00:02]} Nf6 {[%emt 0:00:01]} 5. Bg5 {[%emt 0:00:01]} Nc6 {[%emt 0:00:10]} 6. Bb5 {[%emt 0:00:04]} e6 {[%emt 0:00:12]} 7. Nc3 {[%emt 0:00:06]} Bd7 {[%emt 0:00:04]} 8. Qd3 {[%emt 0:00:02]} Be7 {[%emt 0:00:17]} 9. O-O-O {[%emt 0:00:03]} h6 {[%emt 0:01:09]} 10. Bh4 {[%emt 0:00:53]} Qc7 {[%emt 0:00:59]} 11. Rhe1 {[%emt 0:01:03]} g5 {[%emt 0:02:31]} 12. Bg3 {[%emt 0:00:03]} g4 {[%emt 0:00:01]} 13. Bxc6 {[%emt 0:00:17]} bxc6 {[%emt 0:00:06]} 14. e5 {[%emt 0:00:13]} Nd5 {[%emt 0:01:35]} 15. Ne4 {[%emt 0:03:57]} gxf3 {[%emt 0:00:22]} 16. exd6 {[%emt 0:00:03]} Qa5 {[%emt 0:00:01]} 17. dxe7 {[%emt 0:00:01]} Qxa2 {[%emt 0:00:09]} 18. Bh4 {[%emt 0:01:50]} Qa1+ {[%emt 0:00:59]} 19. Kd2 {[%emt 0:00:01]} Qa5+ {[%emt 0:00:01]} 20. Qc3 {[%emt 0:00:00]} Qxc3+ {[%emt 0:00:16]} 21. bxc3 {[%emt 0:00:01]} Bc8 {[%emt 0:01:15]} 22. Nd6+ {[%emt 0:01:08]} Kd7 {[%emt 0:00:01]} 23. Nxf7 {[%emt 0:00:02]} Re8 {[%emt 0:00:05]} 24. c4 {[%emt 0:00:25]} Nxe7 {[%emt 0:00:02]} 25. Kc3+ {[%emt 0:00:01]} Kc7 {[%emt 0:00:02]} 26. Bg3+ {[%emt 0:00:01]} e5 {[%emt 0:00:18]} 27. Bxe5+ {[%emt 0:00:03]} Kb6 {[%emt 0:00:02]} 28. Rb1+ {[%emt 0:00:01]} Ka6 {[%emt 0:00:07]} 29. Ra1+ {[%emt 0:00:01]} Kb6 {[%emt 0:00:00]} 30. Reb1+ {[%emt 0:00:02]} Kc5 {[%emt 0:00:01]} 31. Bd6# {[%emt 0:00:01]} 1-0

[Event "Szansa Chess Open 2022"]
[Site "Warsaw"]
[Date "2022.09.17"]
[Round "6"]
[White "Polak, Michal"]
[Black "Kowalski, Igor"]
[Result "0-1"]
[ECO "D79"]
[WhiteElo "1954"]
[BlackElo "2344"]
[Annotator "ChessBase"]
[PlyCount "78"]
[EventDate "2022.09.17"]
[EventCountry "POL"]
[SourceTitle "playchess.com"]
[Source "ChessBase"]
[SourceQuality "1"]
[TimeControl "900+10"]

1. d4 {[%emt 0:00:02]} Nf6 {[%emt 0:00:06]} 2. c4 {[%emt 0:00:01]} g6 {[%emt 0:00:18]} 3. g3 {[%emt 0:00:03]} c6 {[%emt 0:00:01]} 4. Nf3 {[%emt 0:00:09]} Bg7 {[%emt 0:00:02]} 5. Bg2 {[%emt 0:00:02]} O-O {[%emt 0:00:02]} 6. O-O {[%emt 0:00:02]} d5 {[%emt 0:00:01]} 7. cxd5 {[%emt 0:00:14]} cxd5 {[%emt 0:00:02]} 8. Nc3 {[%emt 0:00:09]} Ne4 {[%emt 0:00:01]} 9. Bf4 {[%emt 0:00:24]} Nc6 {[%emt 0:00:04]} 10. Ne5 {[%emt 0:02:15]} Bf5 {[%emt 0:00:31]} 11. Rc1 {[%emt 0:00:38]} Nxe5 {[%emt 0:00:50]} 12. Bxe5 {[%emt 0:00:28]} Bh6 {[%emt 0:00:13]} 13. Bf4 {[%emt 0:02:23]} Bxf4 {[%emt 0:00:05]} 14. gxf4 {[%emt 0:00:02]} Qd7 {[%emt 0:01:44]} 15. f3 {[%emt 0:00:55]} Nxc3 {[%emt 0:00:58]} 16. Rxc3 {[%emt 0:00:02]} Rac8 {[%emt 0:00:11]} 17. Qd2 {[%emt 0:01:38]} Rxc3 {[%emt 0:00:07]} 18. bxc3 {[%emt 0:00:02]} Rc8 {[%emt 0:00:08]} 19. e4 {[%emt 0:00:10]} Be6 {[%emt 0:00:18]} 20. Kh1 {[%emt 0:01:34]} Kh8 {[%emt 0:01:32]} 21. Rg1 {[%emt 0:00:15]} Qc7 {[%emt 0:06:22]} 22. f5 {[%emt 0:05:45]} gxf5 {[%emt 0:00:02]} 23. Bh3 {[%emt 0:00:30]} f6 {[%emt 0:02:18]} 24. Bxf5 {[%emt 0:00:30]} Bxf5 {[%emt 0:00:14]} 25. exf5 {[%emt 0:00:05]} Rg8 {[%emt 0:00:12]} 26. Rxg8+ {[%emt 0:00:15]} Kxg8 {[%emt 0:00:01]} 27. Qe3 {[%emt 0:00:08]} Qd7 {[%emt 0:00:35]} 28. Kg2 {[%emt 0:00:30]} Kf7 {[%emt 0:00:15]} 29. Qf4 {[%emt 0:00:12]} Qb5 {[%emt 0:00:30]} 30. Qe3 {[%emt 0:00:29]} Qd7 {[%emt 0:01:43]} 31. Qf4 {[%emt 0:00:07]} Qa4 {[%emt 0:00:02]} 32. h4 {[%emt 0:00:20]} Qxa2+ {[%emt 0:00:02]} 33. Kg3 {[%emt 0:00:03]} Qb1 {[%emt 0:00:16]} 34. Qe3 {[%emt 0:00:11]} Qxf5 {[%emt 0:00:03]} 35. Qe2 {[%emt 0:00:11]} Qb1 {[%emt 0:00:12]} 36. Qe3 {[%emt 0:00:11]} a5 {[%emt 0:00:02]} 37. h5 {[%emt 0:00:02]} a4 {[%emt 0:00:02]} 38. Qf4 {[%emt 0:00:19]} a3 {[%emt 0:00:04]} 39. Qf5 {[%emt 0:00:13]} Qxf5 {[%emt 0:00:02]} 0-1

[Event "Szansa Chess Open 2022"]
[Site "Warsaw"]
[Date "2022.09.17"]
[Round "6"]
[White "Wadelek, Karol"]
[Black "Lewicki, Miroslaw"]
[Result "0-1"]
[ECO "B00"]
[WhiteElo "1943"]
[BlackElo "2336"]
[Annotator "ChessBase"]
[PlyCount "74"]
[EventDate "2022.09.17"]
[EventCountry "POL"]
[SourceTitle "playchess.com"]
[Source "ChessBase"]
[SourceQuality "1"]
[TimeControl "900+10"]

1. e4 {[%emt 0:00:01]} b6 {[%emt 0:00:01]} 2. d4 {[%emt 0:00:11]} Bb7 {[%emt 0:00:01]} 3. Bd3 {[%emt 0:00:01]} g6 4. f4 {[%emt 0:00:33]} Bg7 {[%emt 0:00:03]} 5. Nf3 {[%emt 0:00:01]} e6 {[%emt 0:00:32]} 6. O-O {[%emt 0:00:15]} d5 {[%emt 0:00:01]} 7. e5 {[%emt 0:00:05]} Ne7 {[%emt 0:00:04]} 8. Be3 {[%emt 0:00:29]} c5 {[%emt 0:00:12]} 9. c3 {[%emt 0:00:01]} Nd7 {[%emt 0:00:11]} 10. Nbd2 {[%emt 0:01:47]} Qc7 {[%emt 0:00:07]} 11. Rc1 {[%emt 0:00:06]} a6 {[%emt 0:00:27]} 12. Qe1 {[%emt 0:01:01]} b5 {[%emt 0:00:11]} 13. g4 {[%emt 0:00:22]} h5 {[%emt 0:00:24]} 14. h3 {[%emt 0:00:05]} O-O-O {[%emt 0:00:36]} 15. dxc5 {[%emt 0:00:22]} Nxc5 {[%emt 0:00:07]} 16. Bb1 {[%emt 0:00:22]} hxg4 {[%emt 0:00:06]} 17. hxg4 {[%emt 0:00:02]} Kb8 {[%emt 0:00:07]} 18. Ng5 {[%emt 0:00:09]} d4 19. Bxd4 {[%emt 0:01:05]} Rh1+ {[%emt 0:00:50]} 20. Kf2 {[%emt 0:00:01]} Rh2+ {[%emt 0:00:01]} 21. Ke3 {[%emt 0:01:29]} Nd5+ {[%emt 0:07:13]} 22. Kf3 {[%emt 0:00:02]} Nf6+ {[%emt 0:00:15]} 23. Nde4 {[%emt 0:00:56]} Nfxe4 {[%emt 0:00:18]} 24. Nxe4 {[%emt 0:00:47]} Rdh8 {[%emt 0:00:21]} 25. Rg1 {[%emt 0:00:31]} Rxb2 {[%emt 0:00:16]} 26. Qe3 {[%emt 0:01:45]} Rxb1 {[%emt 0:00:59]} 27. Bxc5 {[%emt 0:00:43]} Rxc1 {[%emt 0:00:02]} 28. Bd6 {[%emt 0:00:38]} Qxd6 {[%emt 0:00:01]} 29. exd6 {[%emt 0:02:22]} Rxc3 {[%emt 0:00:03]} 30. Qxc3 {[%emt 0:00:36]} Bxc3 {[%emt 0:00:03]} 31. Ke3 {[%emt 0:00:08]} Bxe4 {[%emt 0:00:07]} 32. Kxe4 {[%emt 0:00:01]} Bb4 {[%emt 0:00:10]} 33. Rd1 {[%emt 0:00:16]} Rd8 {[%emt 0:00:02]} 34. Ke5 {[%emt 0:00:09]} Kb7 {[%emt 0:00:05]} 35. f5 {[%emt 0:00:30]} gxf5 {[%emt 0:00:06]} 36. gxf5 {[%emt 0:00:02]} exf5 {[%emt 0:00:02]} 37. Kxf5 {[%emt 0:00:52]} Rxd6 {[%emt 0:00:03]} 0-1

[Event "Szansa Chess Open 2022"]
[Site "Warsaw"]
[Date "2022.09.18"]
[Round "6.2"]
[White "Kulesza, Andrzej"]
[Black "Gumularz, Szymon"]
[Result "0-1"]
[ECO "C41"]
[WhiteElo "2014"]
[BlackElo "2532"]
[Annotator "ChessBase"]
[PlyCount "130"]
[EventDate "2022.09.17"]
[EventCountry "POL"]
[SourceTitle "playchess.com"]
[Source "ChessBase"]
[SourceQuality "1"]
[TimeControl "900+10"]

1. e4 {[%emt 0:00:04]} e5 {[%emt 0:00:03]} 2. Nf3 {[%emt 0:00:03]} d6 {[%emt 0:00:01]} 3. d4 {[%emt 0:00:06]} exd4 {[%emt 0:00:02]} 4. Nxd4 {[%emt 0:00:05]} Nf6 {[%emt 0:00:03]} 5. Nc3 {[%emt 0:00:09]} Be7 {[%emt 0:00:02]} 6. Be2 {[%emt 0:00:13]} O-O {[%emt 0:00:02]} 7. Be3 {[%emt 0:00:05]} Re8 {[%emt 0:00:01]} 8. f3 {[%emt 0:00:14]} c6 {[%emt 0:00:01]} 9. a4 {[%emt 0:00:08]} Bf8 {[%emt 0:00:02]} 10. Qd2 {[%emt 0:00:03]} Nbd7 {[%emt 0:00:05]} 11. g4 {[%emt 0:00:18]} Nc5 {[%emt 0:00:14]} 12. g5 {[%emt 0:00:59]} Nfd7 {[%emt 0:00:01]} 13. h4 {[%emt 0:00:02]} Ne5 {[%emt 0:00:08]} 14. h5 {[%emt 0:00:18]} d5 {[%emt 0:00:03]} 15. f4 {[%emt 0:00:09]} Ng4 {[%emt 0:00:05]} 16. e5 {[%emt 0:00:11]} Nxe3 {[%emt 0:00:06]} 17. Qxe3 {[%emt 0:00:02]} Qb6 {[%emt 0:00:03]} 18. O-O-O {[%emt 0:00:31]} Ne6 {[%emt 0:00:02]} 19. Bf3 {[%emt 0:01:18]} Nxd4 {[%emt 0:00:02]} 20. Qxd4 {[%emt 0:00:13]} Qxd4 {[%emt 0:00:01]} 21. Rxd4 {[%emt 0:00:01]} Bc5 {[%emt 0:00:01]} 22. Rd3 {[%emt 0:00:21]} Bf5 {[%emt 0:00:02]} 23. Kd2 {[%emt 0:00:35]} f6 {[%emt 0:00:14]} 24. gxf6 {[%emt 0:00:34]} gxf6 {[%emt 0:00:01]} 25. exf6 {[%emt 0:00:20]} Bxd3 {[%emt 0:00:02]} 26. cxd3 {[%emt 0:00:01]} Kf7 {[%emt 0:00:05]} 27. Ne2 {[%emt 0:00:33]} Kxf6 {[%emt 0:00:02]} 28. h6 {[%emt 0:00:32]} Rg8 {[%emt 0:00:07]} 29. Rh3 {[%emt 0:00:18]} Rae8 {[%emt 0:00:03]} 30. d4 {[%emt 0:00:12]} Bd6 {[%emt 0:00:14]} 31. Kd3 {[%emt 0:00:26]} Ref8 {[%emt 0:00:02]} 32. Ke3 {[%emt 0:00:56]} Ke7 {[%emt 0:00:02]} 33. Rh5 {[%emt 0:00:23]} Rf6 {[%emt 0:00:04]} 34. f5 {[%emt 0:00:44]} Kf7 {[%emt 0:00:01]} 35. Nf4 {[%emt 0:00:27]} Bf8 {[%emt 0:00:04]} 36. Nxd5 {[%emt 0:00:41]} Bxh6+ {[%emt 0:00:13]} 37. Nf4 {[%emt 0:00:02]} Rg5 {[%emt 0:00:08]} 38. Ke4 {[%emt 0:00:19]} Rxh5 {[%emt 0:00:09]} 39. Bxh5+ {[%emt 0:00:05]} Ke7 {[%emt 0:00:01]} 40. Ne6 {[%emt 0:00:25]} Bc1 {[%emt 0:00:06]} 41. b4 {[%emt 0:00:11]} Kd6 {[%emt 0:00:02]} 42. Ng7 {[%emt 0:00:48]} Ke7 {[%emt 0:00:12]} 43. Ke5 {[%emt 0:00:46]} Rh6 {[%emt 0:00:10]} 44. f6+ {[%emt 0:00:03]} Rxf6 {[%emt 0:00:12]} 45. Nf5+ {[%emt 0:00:01]} Rxf5+ {[%emt 0:00:01]} 46. Kxf5 {[%emt 0:00:01]} Kd6 {[%emt 0:00:11]} 47. Bf3 {[%emt 0:00:08]} b5 {[%emt 0:00:09]} 48. d5 {[%emt 0:01:36]} bxa4 {[%emt 0:00:12]} 49. dxc6 {[%emt 0:00:01]} a3 {[%emt 0:00:01]} 50. c7 {[%emt 0:00:01]} Kxc7 {[%emt 0:00:03]} 51. Bd5 {[%emt 0:00:01]} Kb6 {[%emt 0:00:03]} 52. Bc4 {[%emt 0:00:04]} Bd2 {[%emt 0:00:03]} 53. Ke4 {[%emt 0:00:33]} Bxb4 {[%emt 0:00:05]} 54. Kd3 {[%emt 0:00:00]} Be7 {[%emt 0:00:06]} 55. Bg8 {[%emt 0:00:25]} h5 {[%emt 0:00:02]} 56. Bf7 {[%emt 0:00:41]} h4 {[%emt 0:00:01]} 57. Ke3 {[%emt 0:00:01]} Kc5 {[%emt 0:00:02]} 58. Be6 {[%emt 0:00:26]} Kd6 {[%emt 0:00:01]} 59. Bf7 {[%emt 0:00:14]} Ke5 {[%emt 0:00:01]} 60. Bg8 {[%emt 0:00:04]} Bc5+ {[%emt 0:00:04]} 61. Kf3 {[%emt 0:00:01]} Kd4 {[%emt 0:00:02]} 62. Kg4 {[%emt 0:00:03]} Be7 {[%emt 0:00:00]} 63. Kf3 {[%emt 0:00:30]} Kc3 {[%emt 0:00:02]} 64. Ke2 {[%emt 0:00:06]} Kb2 {[%emt 0:00:01]} 65. Kf3 {[%emt 0:00:02]} a2 {[%emt 0:00:02]} 0-1

[Event "Szansa Chess Open 2022"]
[Site "Warsaw"]
[Date "2022.09.18"]
[Round "6.3"]
[White "Jarmula, Lukasz"]
[Black "Psyk, Radoslaw"]
[Result "0-1"]
[ECO "B40"]
[WhiteElo "2457"]
[BlackElo "2404"]
[Annotator "ChessBase"]
[PlyCount "56"]
[EventDate "2022.09.17"]
[EventCountry "POL"]
[SourceTitle "playchess.com"]
[Source "ChessBase"]
[SourceQuality "1"]
[TimeControl "900+10"]

1. e4 {[%emt 0:02:47]} c5 {[%emt 0:00:10]} 2. Nf3 {[%emt 0:00:03]} e6 {[%emt 0:00:02]} 3. d4 {[%emt 0:00:01]} cxd4 {[%emt 0:00:02]} 4. Nxd4 {[%emt 0:00:02]} Nf6 {[%emt 0:00:03]} 5. Nc3 {[%emt 0:00:02]} Nc6 {[%emt 0:00:01]} 6. Nxc6 {[%emt 0:00:14]} bxc6 {[%emt 0:00:03]} 7. e5 {[%emt 0:00:02]} Nd5 {[%emt 0:00:02]} 8. Ne4 {[%emt 0:00:02]} Bb7 {[%emt 0:00:02]} 9. Be2 {[%emt 0:00:56]} c5 {[%emt 0:00:10]} 10. O-O {[%emt 0:00:16]} Qc7 {[%emt 0:00:17]} 11. Nd6+ {[%emt 0:00:21]} Bxd6 {[%emt 0:00:02]} 12. exd6 {[%emt 0:00:02]} Qc6 {[%emt 0:00:13]} 13. f3 {[%emt 0:00:20]} Qb6 {[%emt 0:00:21]} 14. Kh1 {[%emt 0:02:01]} O-O {[%emt 0:01:12]} 15. c4 {[%emt 0:02:01]} Nb4 {[%emt 0:00:03]} 16. Be3 {[%emt 0:01:11]} a5 {[%emt 0:00:05]} 17. Qd2 {[%emt 0:00:23]} Nc6 {[%emt 0:02:09]} 18. Rad1 {[%emt 0:00:17]} e5 {[%emt 0:01:30]} 19. f4 {[%emt 0:00:44]} Rae8 {[%emt 0:02:27]} 20. f5 {[%emt 0:01:08]} f6 {[%emt 0:04:48]} 21. Qd5+ {[%emt 0:00:27]} Kh8 {[%emt 0:00:01]} 22. Qxc5 {[%emt 0:00:28]} Qxb2 {[%emt 0:00:08]} 23. Bf3 {[%emt 0:00:10]} e4 {[%emt 0:00:49]} 24. Rb1 {[%emt 0:03:16]} Qxa2 {[%emt 0:00:24]} 25. Bh5 {[%emt 0:00:53]} Re5 {[%emt 0:01:38]} 26. Qb6 {[%emt 0:00:09]} Ba8 {[%emt 0:00:01]} 27. Qc7 {[%emt 0:00:40]} Rxf5 {[%emt 0:00:04]} 28. Bg4 {[%emt 0:00:27]} Rxf1+ {[%emt 0:01:40]} 0-1

[Event "Szansa Chess Open 2022"]
[Site "Warsaw"]
[Date "2022.09.18"]
[Round "6.4"]
[White "Kosakowski, Jakub"]
[Black "Chomczyk, Marek"]
[Result "0-1"]
[ECO "C24"]
[WhiteElo "2457"]
[BlackElo "2327"]
[Annotator "ChessBase"]
[PlyCount "80"]
[EventDate "2022.09.17"]
[EventCountry "POL"]
[SourceTitle "playchess.com"]
[Source "ChessBase"]
[SourceQuality "1"]
[TimeControl "900+10"]

1. e4 {[%emt 0:00:04]} e5 {[%emt 0:00:01]} 2. Bc4 {[%emt 0:00:04]} Nf6 {[%emt 0:00:02]} 3. d3 {[%emt 0:00:03]} c6 {[%emt 0:00:02]} 4. Nf3 {[%emt 0:00:02]} d5 {[%emt 0:00:03]} 5. Bb3 {[%emt 0:00:03]} a5 {[%emt 0:00:55]} 6. a4 {[%emt 0:00:08]} Bb4+ {[%emt 0:00:02]} 7. c3 {[%emt 0:00:08]} Bd6 {[%emt 0:00:01]} 8. exd5 {[%emt 0:00:10]} cxd5 {[%emt 0:00:01]} 9. Bg5 {[%emt 0:00:03]} Be6 {[%emt 0:00:17]} 10. Na3 {[%emt 0:00:02]} Nbd7 {[%emt 0:00:52]} 11. Nb5 {[%emt 0:00:11]} Bb8 {[%emt 0:00:02]} 12. O-O {[%emt 0:00:43]} Ra6 {[%emt 0:00:54]} 13. Re1 {[%emt 0:00:12]} O-O {[%emt 0:00:16]} 14. h3 {[%emt 0:01:21]} Re8 {[%emt 0:01:26]} 15. Bh4 {[%emt 0:01:43]} h6 {[%emt 0:01:18]} 16. Ba2 {[%emt 0:02:13]} Qc8 {[%emt 0:01:33]} 17. Bg3 {[%emt 0:01:10]} Bf5 {[%emt 0:01:49]} 18. Re3 {[%emt 0:01:28]} e4 {[%emt 0:03:59]} 19. Bxb8 {[%emt 0:02:33]} Qxb8 {[%emt 0:00:05]} 20. dxe4 {[%emt 0:00:08]} dxe4 {[%emt 0:00:17]} 21. Nfd4 {[%emt 0:00:03]} Bg6 {[%emt 0:00:05]} 22. Qe2 {[%emt 0:01:30]} Nc5 {[%emt 0:00:24]} 23. Bc4 {[%emt 0:00:25]} Nd3 {[%emt 0:01:13]} 24. Rd1 {[%emt 0:00:54]} Bh5 {[%emt 0:00:37]} 25. f3 {[%emt 0:01:06]} Nf4 {[%emt 0:00:26]} 26. Qe1 {[%emt 0:00:03]} exf3 {[%emt 0:00:37]} 27. Nxf3 {[%emt 0:01:12]} Bxf3 {[%emt 0:00:19]} 28. Rxe8+ {[%emt 0:01:31]} Nxe8 {[%emt 0:00:01]} 29. Qe7 {[%emt 0:00:26]} Nxh3+ {[%emt 0:01:04]} 30. Kf1 {[%emt 0:00:14]} Rf6 {[%emt 0:00:05]} 31. Rd8 {[%emt 0:00:10]} Qh2 {[%emt 0:00:36]} 32. Qxe8+ {[%emt 0:00:14]} Kh7 {[%emt 0:00:01]} 33. Ke1 {[%emt 0:00:05]} Qg1+ {[%emt 0:00:44]} 34. Kd2 {[%emt 0:00:01]} Qd1+ {[%emt 0:00:02]} 35. Ke3 {[%emt 0:00:01]} Qe1+ {[%emt 0:00:19]} 36. Kd4 {[%emt 0:00:05]} Qf2+ {[%emt 0:00:02]} 37. Qe3 {[%emt 0:00:37]} Rf4+ {[%emt 0:00:01]} 38. Kd3 {[%emt 0:00:01]} Be4+ {[%emt 0:00:02]} 39. Qxe4+ {[%emt 0:00:16]} Rxe4 {[%emt 0:00:01]} 40. Kxe4 {[%emt 0:00:03]} Qh4+ {[%emt 0:00:09]} 0-1

[Event "Szansa Chess Open 2022"]
[Site "Warsaw"]
[Date "2022.09.18"]
[Round "6.5"]
[White "Kokoszczynski, Jan"]
[Black "Jakubowski, Krzysztof"]
[Result "0-1"]
[ECO "A34"]
[WhiteElo "2313"]
[BlackElo "2466"]
[Annotator "ChessBase"]
[PlyCount "68"]
[EventDate "2022.09.17"]
[EventCountry "POL"]
[SourceTitle "playchess.com"]
[Source "ChessBase"]
[SourceQuality "1"]
[TimeControl "900+10"]

1. Nf3 {[%emt 0:00:03]} Nf6 {[%emt 0:00:11]} 2. c4 {[%emt 0:00:03]} c5 {[%emt 0:00:05]} 3. Nc3 {[%emt 0:00:08]} d5 {[%emt 0:00:03]} 4. cxd5 {[%emt 0:00:06]} Nxd5 {[%emt 0:00:02]} 5. e4 {[%emt 0:00:54]} Nb4 {[%emt 0:00:07]} 6. Bc4 {[%emt 0:00:03]} Nd3+ {[%emt 0:00:03]} 7. Ke2 {[%emt 0:00:02]} Nf4+ {[%emt 0:00:01]} 8. Kf1 {[%emt 0:00:01]} Ne6 {[%emt 0:00:02]} 9. d3 {[%emt 0:00:22]} g6 {[%emt 0:00:21]} 10. h4 {[%emt 0:00:26]} h6 {[%emt 0:00:08]} 11. g3 {[%emt 0:00:16]} Bg7 {[%emt 0:00:09]} 12. Kg2 {[%emt 0:00:03]} O-O {[%emt 0:00:09]} 13. Be3 {[%emt 0:01:58]} Nd4 {[%emt 0:00:09]} 14. Qd2 {[%emt 0:00:03]} Nxf3 {[%emt 0:00:26]} 15. Kxf3 {[%emt 0:00:02]} Nc6 {[%emt 0:00:01]} 16. Bxh6 {[%emt 0:01:13]} Ne5+ {[%emt 0:00:23]} 17. Kg2 {[%emt 0:00:01]} Bg4 {[%emt 0:00:02]} 18. Bxg7 {[%emt 0:00:42]} Bf3+ {[%emt 0:00:08]} 19. Kg1 {[%emt 0:00:49]} Kxg7 {[%emt 0:00:15]} 20. Qf4 {[%emt 0:00:02]} Qd4 {[%emt 0:00:44]} 21. Rh2 {[%emt 0:00:25]} a6 {[%emt 0:01:16]} 22. Re1 {[%emt 0:01:57]} Bh5 {[%emt 0:00:45]} 23. Re3 {[%emt 0:00:16]} Ng4 {[%emt 0:00:05]} 24. Rg2 {[%emt 0:00:04]} e5 {[%emt 0:02:42]} 25. Qf3 {[%emt 0:00:01]} b5 {[%emt 0:00:02]} 26. Bd5 {[%emt 0:00:29]} Rad8 {[%emt 0:00:15]} 27. Qe2 {[%emt 0:01:01]} b4 {[%emt 0:01:01]} 28. Na4 {[%emt 0:00:30]} f5 {[%emt 0:00:04]} 29. Qd2 {[%emt 0:00:26]} fxe4 {[%emt 0:01:42]} 30. Bxe4 {[%emt 0:00:02]} c4 {[%emt 0:00:01]} 31. Re1 {[%emt 0:00:15]} cxd3 {[%emt 0:00:51]} 32. b3 {[%emt 0:01:01]} Rxf2 {[%emt 0:00:47]} 33. Rxf2 {[%emt 0:00:05]} Nxf2 {[%emt 0:00:02]} 34. Qxf2 {[%emt 0:00:31]} d2 {[%emt 0:00:02]} 0-1

[Event "Szansa Chess Open 2022"]
[Site "Warsaw"]
[Date "2022.09.18"]
[Round "6.6"]
[White "Kozak, Antoni"]
[Black "Czarnecka, Lidia"]
[Result "1-0"]
[ECO "D11"]
[WhiteElo "2434"]
[BlackElo "1957"]
[Annotator "ChessBase"]
[PlyCount "67"]
[EventDate "2022.09.17"]
[EventCountry "POL"]
[SourceTitle "playchess.com"]
[Source "ChessBase"]
[SourceQuality "1"]
[TimeControl "900+10"]

1. d4 {[%emt 0:00:01]} d5 {[%emt 0:00:01]} 2. c4 {[%emt 0:00:01]} c6 {[%emt 0:00:02]} 3. Nf3 {[%emt 0:00:01]} Nf6 {[%emt 0:00:01]} 4. Qb3 {[%emt 0:00:01]} dxc4 {[%emt 0:00:04]} 5. Qxc4 {[%emt 0:00:02]} Bf5 {[%emt 0:00:08]} 6. g3 {[%emt 0:00:04]} e6 {[%emt 0:00:13]} 7. Bg2 {[%emt 0:00:02]} Be7 {[%emt 0:00:07]} 8. Nbd2 {[%emt 0:00:01]} h6 {[%emt 0:00:07]} 9. Qb3 {[%emt 0:00:10]} Qb6 {[%emt 0:00:05]} 10. Nc4 {[%emt 0:00:01]} Qa6 {[%emt 0:02:01]} 11. Bf4 {[%emt 0:00:02]} O-O {[%emt 0:00:19]} 12. Nd6 {[%emt 0:02:33]} Bxd6 {[%emt 0:01:21]} 13. Bxd6 {[%emt 0:00:02]} Re8 {[%emt 0:00:02]} 14. O-O {[%emt 0:00:33]} Be4 {[%emt 0:00:22]} 15. Rfe1 {[%emt 0:01:23]} Nbd7 {[%emt 0:00:16]} 16. a4 {[%emt 0:00:47]} Rac8 {[%emt 0:01:23]} 17. Qa3 {[%emt 0:00:14]} Nb6 {[%emt 0:00:27]} 18. b3 {[%emt 0:00:25]} Nbd5 {[%emt 0:00:52]} 19. Rac1 {[%emt 0:01:02]} Nd7 {[%emt 0:00:36]} 20. a5 {[%emt 0:04:22]} Qb5 {[%emt 0:01:19]} 21. Bf1 {[%emt 0:00:11]} b6 {[%emt 0:00:44]} 22. Nd2 {[%emt 0:00:03]} N5f6 {[%emt 0:00:21]} 23. f3 {[%emt 0:00:56]} Bg6 {[%emt 0:00:38]} 24. e4 {[%emt 0:00:02]} Qxa5 {[%emt 0:00:00]} 25. Qxa5 {[%emt 0:00:02]} bxa5 {[%emt 0:00:01]} 26. Ba6 {[%emt 0:00:03]} Nb6 {[%emt 0:00:23]} 27. Bxc8 {[%emt 0:00:08]} Rxc8 {[%emt 0:00:01]} 28. Ra1 {[%emt 0:00:08]} Rd8 {[%emt 0:00:23]} 29. Bc5 {[%emt 0:00:17]} Nfd7 {[%emt 0:00:15]} 30. Be7 {[%emt 0:00:02]} Re8 {[%emt 0:00:13]} 31. Bd6 {[%emt 0:00:02]} e5 {[%emt 0:00:05]} 32. dxe5 {[%emt 0:00:05]} Nxe5 {[%emt 0:00:00]} 33. Rxa5 {[%emt 0:00:03]} Nd3 {[%emt 0:00:09]} 34. Re3 {[%emt 0:00:21]} 1-0

[Event "Szansa Chess Open 2022"]
[Site "Warsaw"]
[Date "2022.09.18"]
[Round "6.7"]
[White "Slomczewski, Michal"]
[Black "Nguyen, Piotr"]
[Result "0-1"]
[ECO "B06"]
[WhiteElo "2108"]
[BlackElo "2421"]
[Annotator "ChessBase"]
[PlyCount "58"]
[EventDate "2022.09.17"]
[EventCountry "POL"]
[SourceTitle "playchess.com"]
[Source "ChessBase"]
[SourceQuality "1"]
[TimeControl "900+10"]

1. e4 {[%emt 0:00:38]} g6 {[%emt 0:00:01]} 2. Nf3 {[%emt 0:00:44]} Bg7 {[%emt 0:00:02]} 3. Bc4 {[%emt 0:00:01]} e6 {[%emt 0:00:02]} 4. O-O {[%emt 0:00:02]} d5 {[%emt 0:00:03]} 5. exd5 {[%emt 0:00:21]} exd5 {[%emt 0:00:02]} 6. Bb3 {[%emt 0:00:00]} c5 {[%emt 0:00:20]} 7. d4 {[%emt 0:00:31]} cxd4 {[%emt 0:01:04]} 8. Re1+ {[%emt 0:01:33]} Ne7 {[%emt 0:00:03]} 9. Bg5 {[%emt 0:00:58]} Nbc6 {[%emt 0:00:18]} 10. Nxd4 {[%emt 0:00:01]} f6 {[%emt 0:00:32]} 11. Bf4 {[%emt 0:02:37]} O-O {[%emt 0:00:10]} 12. Nc3 {[%emt 0:00:12]} Kh8 {[%emt 0:00:26]} 13. Ncb5 {[%emt 0:03:18]} Ne5 {[%emt 0:00:25]} 14. Bg3 {[%emt 0:00:26]} a6 {[%emt 0:01:40]} 15. Nc3 {[%emt 0:00:01]} b5 {[%emt 0:00:33]} 16. Qd2 {[%emt 0:03:49]} Ra7 {[%emt 0:01:24]} 17. Nxd5 {[%emt 0:01:08]} Rd7 {[%emt 0:03:22]} 18. Nxe7 {[%emt 0:00:34]} Rxd4 {[%emt 0:00:26]} 19. Qc3 {[%emt 0:00:36]} Bb7 {[%emt 0:01:10]} 20. f4 {[%emt 0:00:36]} Nc4 {[%emt 0:00:49]} 21. f5 {[%emt 0:00:22]} Rd7 {[%emt 0:00:51]} 22. Bxc4 {[%emt 0:00:06]} bxc4 {[%emt 0:00:02]} 23. Qe3 {[%emt 0:00:10]} Rf7 {[%emt 0:00:35]} 24. Bd6 {[%emt 0:00:13]} Rxd6 {[%emt 0:01:28]} 25. fxg6 {[%emt 0:00:02]} Rf8 {[%emt 0:00:06]} 26. gxh7 {[%emt 0:00:05]} f5 {[%emt 0:00:11]} 27. Qg5 {[%emt 0:00:25]} Qb6+ {[%emt 0:00:30]} 28. Kh1 {[%emt 0:00:05]} Rh6 {[%emt 0:00:06]} 29. Nxf5 {[%emt 0:00:11]} Rg6 {[%emt 0:00:06]} 0-1